fUSD/lending_fUSD_20260517
["ID","MTS","AMOUNT","RATE_DAILY","PERIOD"]
[422477790,1778983840000,-500.0,0.00026,2]
[422477783,1778983840000,-151.0,0.00026,2]
[422477785,1778983840000,-500.0,0.00026,2]
[422477782,1778983840000,-215.0785988,0.00026,10]
[422477787,1778983840000,-500.0,0.00026,2]
[422477798,1778983840000,-500.0,0.00026,2]
[422477784,1778983840000,-151.0,0.00026,2]
[422477781,1778983840000,-400.29843382,0.00026,20]
[422477786,1778983840000,-500.0,0.00026,2]
[422477793,1778983840000,-500.0,0.00026,2]
[422477794,1778983840000,-500.0,0.00026,2]
[422477792,1778983840000,-500.0,0.00026,2]
[422477795,1778983840000,-500.0,0.00026,2]
[422477796,1778983840000,-500.0,0.00026,2]
[422477780,1778983840000,-27310.73338068,0.00026,10]
[422477820,1778983842000,-500.0,0.00026,2]
[422477816,1778983842000,-500.0,0.00026,2]
[422477815,1778983842000,-289.74083813,0.00026,2]
[422477817,1778983842000,-500.0,0.00026,2]
[422477818,1778983842000,-500.0,0.00026,2]
[422477824,1778983842000,-500.0,0.00026,2]
[422477821,1778983842000,-500.0,0.00026,2]
[422477827,1778983842000,-500.0,0.00026,2]
[422477825,1778983842000,-500.0,0.00026,2]
[422477822,1778983842000,-500.0,0.00026,2]
[422477826,1778983842000,-500.0,0.00026,2]
[422477828,1778983842000,-500.0,0.00026,2]
[422477823,1778983842000,-500.0,0.00026,2]
[422477819,1778983842000,-500.0,0.00026,2]
[422477856,1778983843000,-5530.0,0.000261,5]
[422477845,1778983843000,-451.491165,0.00026,2]
[422477848,1778983843000,-151.0,0.00026,2]
[422477844,1778983843000,-451.491165,0.00026,2]
[422477854,1778983843000,-437.4,0.0002603,2]
[422477865,1778983843000,-650.75489367,0.00026542,7]
[422477858,1778983843000,-1095.30973864,0.00026256,2]
[422477862,1778983843000,-230.7,0.00026296,2]
[422477869,1778983843000,-385.0,0.00026683,2]
[422477868,1778983843000,-277.0,0.00026683,2]
[422477846,1778983843000,-151.0,0.00026,2]
[422477861,1778983843000,-187.31722698,0.00026287,2]
[422477857,1778983843000,-2802.5412967,0.00026256,2]
[422477863,1778983843000,-181.49004347,0.00026397,2]
[422477859,1778983843000,-506.71810702,0.00026287,2]
[422477866,1778983843000,-5008.3288374,0.00026673,2]
[422477860,1778983843000,-500.0,0.00026287,2]
[422477867,1778983843000,-28923.6093347,0.00026673,2]
[422477849,1778983843000,-207.900653,0.00026,2]
[422477852,1778983843000,-151.0,0.00026,2]
[422477853,1778983843000,-151.0,0.00026,2]
[422477829,1778983843000,-500.0,0.00026,2]
[422477830,1778983843000,-500.0,0.00026,2]
[422477831,1778983843000,-183.947102,0.00026,2]
[422477842,1778983843000,-451.491165,0.00026,2]
[422477832,1778983843000,-151.0,0.00026,2]
[422477834,1778983843000,-151.0,0.00026,2]
[422477835,1778983843000,-151.0,0.00026,2]
[422477841,1778983843000,-151.0,0.00026,2]
[422477838,1778983843000,-151.0,0.00026,2]
[422477833,1778983843000,-151.0,0.00026,2]
[422477840,1778983843000,-151.0,0.00026,2]
[422477836,1778983843000,-151.0,0.00026,2]
[422477839,1778983843000,-151.0,0.00026,2]
[422477843,1778983843000,-451.491165,0.00026,2]
[422477837,1778983843000,-259.925643,0.00026,2]
[422477851,1778983843000,-156.567126,0.00026,2]
[422477855,1778983843000,-450.0,0.0002603,2]
[422477850,1778983843000,-151.0,0.00026,2]
[422477873,1778983843000,-1119.3872198,0.00026775,2]
[422477847,1778983843000,-151.0,0.00026,2]
[422477870,1778983843000,-2802.5412967,0.00026711,2]
[422477864,1778983843000,-172.32534199,0.00026542,4]
[422477875,1778983843000,-2000.0,0.00026814,2]
[422477907,1778983843000,-1887.7863083,0.00027349,2]
[422477903,1778983843000,-1887.7863083,0.00027218,2]
[422477906,1778983843000,-1887.7863083,0.00027327,2]
[422477901,1778983843000,-2802.5412967,0.00027167,2]
[422477900,1778983843000,-8081.90971867,0.00027135,2]
[422477902,1778983843000,-532.96,0.00027175,2]
[422477908,1778983843000,-4169.74330522,0.0002739,2]
[422477899,1778983843000,-150.0,0.00027123,20]
[422477909,1778983843000,-8237.4738307,0.0002739,2]
[422477905,1778983843000,-924.92,0.000273,7]
[422477910,1778983843000,-1095.30973864,0.00027397,2]
[422477915,1778983843000,-242.18067144,0.00027397,2]
[422477872,1778983843000,-4559.244041,0.00026775,2]
[422477917,1778983843000,-829.33853688,0.00027397,2]
[422477914,1778983843000,-22.2192226,0.00027397,2]
[422477911,1778983843000,-851.90846315,0.00027397,30]
[422477916,1778983843000,-150.0,0.00027397,2]
[422477920,1778983843000,-163.16,0.00027397,2]
[422477904,1778983843000,-1887.7863083,0.00027271,2]
[422477893,1778983843000,-1887.7863083,0.00027026,2]
[422477912,1778983843000,-500.0,0.00027397,2]
[422477892,1778983843000,-1887.7863083,0.00027025,2]
[422477895,1778983843000,-1887.7863083,0.00027044,2]
[422477876,1778983843000,-1887.7863083,0.00026817,2]
[422477871,1778983843000,-159.12,0.0002673,2]
[422477874,1778983843000,-41803.0853325,0.00026775,2]
[422477880,1778983843000,-1887.7863083,0.00026952,2]
[422477879,1778983843000,-1887.7863083,0.00026853,2]
[422477878,1778983843000,-1887.7863083,0.00026835,2]
[422477877,1778983843000,-1887.7863083,0.00026834,2]
[422477882,1778983843000,-215.0785988,0.00027,3]
[422477881,1778983843000,-2000.0,0.00027,2]
[422477913,1778983843000,-477.7807774,0.00027397,2]
[422477884,1778983843000,-1049.1183092,0.00027,2]
[422477887,1778983843000,-2573.674008,0.0002701,2]
[422477883,1778983843000,-250.0,0.00027,2]
[422477889,1778983843000,-3588.319,0.00027025,15]
[422477898,1778983843000,-1190.0,0.000271,7]
[422477897,1778983843000,-1887.7863083,0.00027091,2]
[422477886,1778983843000,-530.0,0.00027,2]
[422477891,1778983843000,-154.673,0.00027025,15]
[422477896,1778983843000,-1887.7863083,0.00027047,2]
[422477894,1778983843000,-7555.11301864,0.00027027,2]
[422477927,1778983845000,-541.0,0.00027137,2]
[422477929,1778983845000,-1465.3,0.00027397,2]
[422477931,1778983845000,-300.0,0.00027397,2]
[422477930,1778983845000,-369.89,0.00027397,2]
[422477933,1778983845000,-464.879264,0.00027397,2]
[422477934,1778983845000,-464.879264,0.00027397,2]
[422477928,1778983845000,-507.50146312,0.00027397,2]
[422477932,1778983845000,-151.000006,0.00027397,2]
[422477936,1778983846000,-464.879264,0.00027397,2]
[422477937,1778983846000,-151.0,0.00027397,2]
[422477938,1778983846000,-233.542804,0.00027397,2]
[422477939,1778983846000,-4197.29028438,0.00027397,10]
[422477935,1778983846000,-464.879264,0.00027397,2]
[422477943,1778983846000,-150.4296,0.00027397,2]
[422477945,1778983846000,-301.64070042,0.00027399,14]
[422477942,1778983846000,-241.98672464,0.00027397,7]
[422477941,1778983846000,-3257.52971562,0.00027397,10]
[422477940,1778983846000,-343.46,0.00027397,10]
[422477944,1778983846000,-166.77041051,0.00027397,30]
[422477950,1778983972000,550.68257008,0.00030136,120]
[422477952,1778984040000,517.13,0.00030067,120]
[422477951,1778984040000,517.13,0.00028699,120]
[422477954,1778984062000,376.33,0.00028848,120]
[422477953,1778984062000,376.33,0.00025643,120]
[422477960,1778984665000,1000.0,0.0003013,120]
[422477961,1778984799000,-194.53359076,0.00012415,2]
[422477963,1778984899000,307.33,0.00029658,120]
[422477962,1778984899000,307.33,0.00026692,120]
[422477965,1778984933000,500.0,0.00028468,120]
[422477966,1778984933000,500.0,0.00029009,120]
[422477968,1778984933000,500.0,0.00030129,120]
[422477967,1778984933000,500.0,0.00030129,120]
[422477970,1778984934000,500.0,0.00030129,120]
[422477969,1778984934000,500.0,0.00030129,120]
[422477971,1778984941000,1000.0,0.00030135,120]
[422477976,1778985031000,-174.02321458,0.00018438,2]
[422477975,1778985031000,-254.80910455,0.00013657,2]
[422477974,1778985031000,-87.97640924,0.00012415,2]
[422477993,1778985032000,-1071.0,0.00021,2]
[422477990,1778985032000,-267.0,0.00021,2]
[422477989,1778985032000,-500.0,0.00020767,2]
[422477987,1778985032000,-310.208619,0.0002,30]
[422477991,1778985032000,-257.0,0.00021,2]
[422477984,1778985032000,-165.0,0.0002,2]
[422477983,1778985032000,-93.51993915,0.0002,2]
[422477980,1778985032000,-267.0,0.0002,2]
[422477985,1778985032000,-159.24741556,0.0002,2]
[422477982,1778985032000,-163.48006085,0.0002,2]
[422477988,1778985032000,-150.0,0.00020548,2]
[422477981,1778985032000,-161.67868879,0.0002,2]
[422477978,1778985032000,-176.86446494,0.000199,2]
[422477979,1778985032000,-1200.0,0.00019999,2]
[422477977,1778985032000,-325.97678542,0.00018438,2]
[422477986,1778985032000,-156.0,0.0002,2]
[422477992,1778985032000,-156.0,0.00021,2]
[422478006,1778985032000,-257.0,0.00023,2]
[422477998,1778985032000,-267.0,0.00022,2]
[422478012,1778985032000,-1401.71397717,0.00023707,2]
[422478008,1778985032000,-156.0,0.00023,2]
[422478010,1778985032000,-150.0,0.00023116,2]
[422478009,1778985032000,-166.67,0.00023045,30]
[422477996,1778985032000,-193.51522137,0.00021881,2]
[422478003,1778985032000,-293.29501008,0.00022407,2]
[422478002,1778985032000,-151.0,0.00022353,2]
[422478007,1778985032000,-397.0,0.00023,2]
[422478004,1778985032000,-204.29503689,0.00022407,2]
[422478005,1778985032000,-267.0,0.00023,2]
[422478000,1778985032000,-156.0,0.00022,2]
[422477999,1778985032000,-257.0,0.00022,2]
[422477997,1778985032000,-220.77,0.00021931,2]
[422477994,1778985032000,-150.0,0.00021404,2]
[422477995,1778985032000,-1486.48477863,0.00021881,2]
[422478001,1778985032000,-150.0,0.0002226,2]
[422478087,1778985038000,-192.1,0.00025898,2]
[422478088,1778985038000,-1953.05,0.00026077,2]
[422478082,1778985038000,-166.67,0.00025471,30]
[422478083,1778985038000,-1953.05,0.00025485,2]
[422478081,1778985038000,-192.84,0.00025458,2]
[422478079,1778985038000,-176.86446495,0.00025239,2]
[422478078,1778985038000,-165.19732035,0.000252,2]
[422478075,1778985038000,-165.19732035,0.00025,2]
[422478089,1778985038000,-151.0,0.00026296,2]
[422478080,1778985038000,-5000.0,0.00025366,2]
[422478086,1778985038000,-252.0,0.00025695,2]
[422478104,1778985038000,-315.78320302,0.00026628,2]
[422478085,1778985038000,-150.0,0.00025685,2]
[422478084,1778985038000,-2434.8,0.00025491,2]
[422478091,1778985038000,-252.0,0.00026517,2]
[422478094,1778985038000,-559.29299642,0.00026538,2]
[422478093,1778985038000,-12219.62169912,0.00026538,2]
[422478092,1778985038000,-776.2133142,0.00026538,2]
[422478103,1778985038000,-315.78320302,0.00026628,2]
[422478077,1778985038000,-274.0,0.00025,2]
[422478095,1778985038000,-518.95336656,0.00026538,2]
[422478096,1778985038000,-9060.41174619,0.00026538,2]
[422478100,1778985038000,-5000.0,0.00026538,2]
[422478090,1778985038000,-15012.3235,0.00026438,2]
[422478076,1778985038000,-284.0,0.00025,2]
[422478068,1778985038000,-165.19732035,0.000247,2]
[422478072,1778985038000,-500.0,0.0002479,2]
[422478050,1778985038000,-42.07507602,0.00023726,2]
[422478049,1778985038000,-551.33602283,0.00023707,2]
[422478051,1778985038000,-150.31782869,0.000219,2]
[422478052,1778985038000,-265.25492398,0.00023726,2]
[422478053,1778985038000,-2351.0,0.00023941,2]
[422478056,1778985038000,-267.0,0.00024,2]
[422478054,1778985038000,-500.0,0.00023972,2]
[422478060,1778985038000,-500.0,0.00024274,2]
[422478058,1778985038000,-161.27724586,0.00024,2]
[422478059,1778985038000,-2000.0,0.00024193,2]
[422478063,1778985038000,-151.0,0.00024324,2]
[422478057,1778985038000,-257.0,0.00024,2]
[422478061,1778985038000,-838.0,0.00024274,2]
[422478062,1778985038000,-1953.05,0.00024299,2]
[422478065,1778985038000,-196.33462482,0.00024513,21]
[422478064,1778985038000,-996.34,0.00024468,2]
[422478069,1778985038000,-208.48490792,0.0002479,2]
[422478097,1778985038000,-195.57533276,0.00026538,2]
[422478067,1778985038000,-5960.4391,0.00024685,10]
[422478066,1778985038000,-221.93,0.00024658,2]
[422478071,1778985038000,-160.0,0.0002479,2]
[422478070,1778985038000,-215.0785988,0.0002479,2]
[422478074,1778985038000,-1953.05,0.00024892,2]
[422478073,1778985038000,-150.0,0.00024829,2]
[422478099,1778985038000,-4168.9428,0.00026538,2]
[422478055,1778985038000,-150.0,0.00023973,2]
[422478098,1778985038000,-5039.7642,0.00026538,2]
[422478157,1778985038000,-182.57105236,0.00026637,2]
[422478158,1778985038000,-500.0,0.00026637,2]
[422478162,1778985038000,-289.9162333,0.00026637,2]
[422478159,1778985038000,-500.0,0.00026637,2]
[422478161,1778985038000,-500.0,0.00026637,2]
[422478156,1778985038000,-500.0,0.00026637,2]
[422478165,1778985038000,-500.0,0.00026637,2]
[422478163,1778985038000,-500.0,0.00026637,2]
[422478164,1778985038000,-500.0,0.00026637,2]
[422478160,1778985038000,-500.0,0.00026637,2]
[422478167,1778985038000,-500.0,0.00026637,2]
[422478153,1778985038000,-348.30802821,0.00026637,2]
[422478166,1778985038000,-500.0,0.00026637,2]
[422478169,1778985038000,-1714612.31623988,0.00026638,2]
[422478170,1778985038000,-6422.43961058,0.00026638,2]
[422478175,1778985038000,-1563.87132115,0.00026638,2]
[422478171,1778985038000,-3794.71873039,0.00026638,2]
[422478172,1778985038000,-3059.81169926,0.00026638,2]
[422478178,1778985038000,-2000.0,0.00026638,2]
[422478173,1778985038000,-4080.8211877,0.00026638,2]
[422478177,1778985038000,-759782.92615479,0.00026638,2]
[422478176,1778985038000,-2528.48506424,0.00026638,2]
[422478179,1778985038000,-1038219.49398516,0.00026638,2]
[422478102,1778985038000,-150.0,0.00026541,2]
[422478168,1778985038000,-500.0,0.00026637,2]
[422478155,1778985038000,-500.0,0.00026637,2]
[422478174,1778985038000,-4154.60999201,0.00026638,2]
[422478151,1778985038000,-500.0,0.00026637,2]
[422478105,1778985038000,-500.0,0.00026637,2]
[422478106,1778985038000,-500.0,0.00026637,2]
[422478120,1778985038000,-500.0,0.00026637,2]
[422478101,1778985038000,-2500.0,0.00026538,2]
[422478122,1778985038000,-500.0,0.00026637,2]
[422478118,1778985038000,-500.0,0.00026637,2]
[422478109,1778985038000,-500.0,0.00026637,2]
[422478111,1778985038000,-500.0,0.00026637,2]
[422478113,1778985038000,-500.0,0.00026637,2]
[422478115,1778985038000,-500.0,0.00026637,2]
[422478128,1778985038000,-300.0,0.00026637,10]
[422478125,1778985038000,-500.0,0.00026637,2]
[422478134,1778985038000,-500.0,0.00026637,2]
[422478132,1778985038000,-500.0,0.00026637,2]
[422478152,1778985038000,-500.0,0.00026637,2]
[422478150,1778985038000,-500.0,0.00026637,2]
[422478146,1778985038000,-500.0,0.00026637,2]
[422478136,1778985038000,-500.0,0.00026637,2]
[422478148,1778985038000,-500.0,0.00026637,2]
[422478142,1778985038000,-500.0,0.00026637,2]
[422478138,1778985038000,-500.0,0.00026637,2]
[422478140,1778985038000,-500.0,0.00026637,2]
[422478130,1778985038000,-500.0,0.00026637,2]
[422478144,1778985038000,-363.83210608,0.00026637,2]
[422478154,1778985038000,-515.65049989,0.00026637,2]
[422478181,1778985039000,-42344.75404496,0.00026638,2]
[422478180,1778985039000,-547.4565743,0.00026638,2]
[422478187,1778985040000,-588.75869778,0.00026638,2]
[422478185,1778985040000,-2193.198547,0.00026638,2]
[422478186,1778985040000,-1402.17,0.00026638,2]
[422478184,1778985040000,-305.11934148,0.00026638,2]
[422478183,1778985040000,-338.004,0.00026638,2]
[422478192,1778985043000,-1674.75249897,0.00026638,2]
[422478189,1778985043000,-2121.80929683,0.00026638,2]
[422478190,1778985043000,-378.01644012,0.00026638,2]
[422478193,1778985043000,-1197.29978629,0.00026638,2]
[422478196,1778985043000,-1249.81769327,0.00026638,2]
[422478195,1778985043000,-46223.48980043,0.00026638,2]
[422478194,1778985043000,-473.21006492,0.00026638,2]
[422478200,1778985046000,-1644.16589169,0.00026638,2]
[422478199,1778985046000,-31194.08542697,0.00026638,2]
[422478198,1778985046000,-3921.84167345,0.00026638,2]
[422478234,1778985663000,2000.0,0.00029189,120]
[422478236,1778985708000,-166.9,0.00012506,2]
[422478240,1778986141000,1000.0,0.00030134,120]
[422478257,1778986232000,-150.0,0.00021918,2]
[422478256,1778986232000,-500.0,0.00021726,2]
[422478259,1778986232000,-179.0,0.00022,2]
[422478258,1778986232000,-186.0,0.00022,2]
[422478266,1778986232000,-1297.12,0.00022901,2]
[422478260,1778986232000,-1200.0,0.00022404,2]
[422478264,1778986232000,-300.0,0.00022899,2]
[422478254,1778986232000,-179.0,0.00021,2]
[422478270,1778986232000,-264.0,0.00023,2]
[422478262,1778986232000,-166.66,0.00022588,30]
[422478261,1778986232000,-194.08028505,0.00022407,2]
[422478253,1778986232000,-186.0,0.00021,2]
[422478263,1778986232000,-150.0,0.00022603,2]
[422478251,1778986232000,-179.0,0.0002,2]
[422478252,1778986232000,-167.0,0.00021,2]
[422478247,1778986232000,-166.9,0.00018514,2]
[422478250,1778986232000,-186.0,0.0002,2]
[422478249,1778986232000,-155.0,0.0002,2]
[422478248,1778986232000,-1068.27736952,0.0001998,2]
[422478245,1778986232000,-237.48681913,0.000154,2]
[422478246,1778986232000,-300.0,0.00016,2]
[422478244,1778986232000,-96.99999999,0.00014139,2]
[422478243,1778986232000,-105.00000001,0.00014139,2]
[422478242,1778986232000,-250.0,0.00014,2]
[422478255,1778986232000,-171.30607919,0.00021,2]
[422478265,1778986232000,-326.0545,0.000229,2]
[422478295,1778986232000,-500.0,0.00024899,2]
[422478269,1778986232000,-179.0,0.00023,2]
[422478268,1778986232000,-186.0,0.00023,2]
[422478301,1778986232000,-184.47829343,0.00024899,2]
[422478299,1778986232000,-465.61194919,0.000249,2]
[422478300,1778986232000,-500.0,0.00024899,2]
[422478293,1778986232000,-500.0,0.00024899,2]
[422478296,1778986232000,-126596.98159611,0.000249,2]
[422478292,1778986232000,-500.0,0.00024899,2]
[422478294,1778986232000,-159.64351787,0.00024899,2]
[422478297,1778986232000,-3243.44933891,0.000249,2]
[422478291,1778986232000,-157.89160152,0.0002489,2]
[422478289,1778986232000,-420.0,0.00024861,2]
[422478288,1778986232000,-783.46,0.000247,2]
[422478298,1778986232000,-500.0,0.00024899,2]
[422478281,1778986232000,-2500.0,0.0002418,2]
[422478290,1778986232000,-208.48490792,0.00024877,2]
[422478273,1778986232000,-267.94164141,0.00023288,2]
[422478272,1778986232000,-192.84,0.00023254,2]
[422478277,1778986232000,-186.0,0.00024,2]
[422478284,1778986232000,-231.49,0.00024516,2]
[422478271,1778986232000,-14265.03,0.00023108,2]
[422478275,1778986232000,-2000.0,0.00023352,2]
[422478286,1778986232000,-1000.0,0.00024658,2]
[422478287,1778986232000,-156.32,0.00024687,2]
[422478279,1778986232000,-179.0,0.00024,2]
[422478285,1778986232000,-166.9,0.00024522,2]
[422478324,1778986238000,-500.0,0.00024899,2]
[422478329,1778986238000,-500.0,0.00024899,2]
[422478327,1778986238000,-500.0,0.00024899,2]
[422478337,1778986238000,-500.0,0.00024899,2]
[422478339,1778986238000,-500.0,0.00024899,2]
[422478341,1778986238000,-500.0,0.00024899,2]
[422478346,1778986238000,-500.0,0.00024899,2]
[422478344,1778986238000,-500.0,0.00024899,2]
[422478360,1778986238000,-500.0,0.00024899,2]
[422478348,1778986238000,-500.0,0.00024899,2]
[422478354,1778986238000,-500.0,0.00024899,2]
[422478362,1778986238000,-624.67,0.00024899,2]
[422478352,1778986238000,-500.0,0.00024899,2]
[422478356,1778986238000,-500.0,0.00024899,2]
[422478358,1778986238000,-534.72603311,0.00024899,2]
[422478335,1778986238000,-500.0,0.00024899,2]
[422478350,1778986238000,-500.0,0.00024899,2]
[422478320,1778986238000,-500.0,0.00024899,2]
[422478364,1778986238000,-1369693.95711579,0.000249,2]
[422478322,1778986238000,-500.0,0.00024899,2]
[422478303,1778986238000,-500.0,0.00024899,2]
[422478302,1778986238000,-315.52170657,0.00024899,2]
[422478304,1778986238000,-500.0,0.00024899,2]
[422478305,1778986238000,-287.37581838,0.00024899,2]
[422478307,1778986238000,-500.0,0.00024899,2]
[422478306,1778986238000,-212.62418162,0.00024899,2]
[422478308,1778986238000,-500.0,0.00024899,2]
[422478310,1778986238000,-500.0,0.00024899,2]
[422478312,1778986238000,-213.66267143,0.00024899,2]
[422478313,1778986238000,-500.0,0.00024899,2]
[422478311,1778986238000,-286.33732857,0.00024899,2]
[422478314,1778986238000,-500.0,0.00024899,2]
[422478316,1778986238000,-500.0,0.00024899,2]
[422478318,1778986238000,-500.0,0.00024899,2]
[422478317,1778986238000,-500.0,0.00024899,2]
[422478315,1778986238000,-500.0,0.00024899,2]
[422478331,1778986238000,-500.0,0.00024899,2]
[422478333,1778986238000,-500.0,0.00024899,2]
[422478366,1778986238000,-166.66,0.00024965,30]
[422478309,1778986238000,-500.0,0.00024899,2]
[422478370,1778986238000,-4837.73587691,0.00025,3]
[422478404,1778986238000,-500.0,0.00025099,2]
[422478410,1778986238000,-500.0,0.00025099,2]
[422478420,1778986238000,-500.0,0.00025099,2]
[422478421,1778986238000,-500.0,0.00025099,2]
[422478418,1778986238000,-500.0,0.00025099,2]
[422478423,1778986238000,-500.0,0.00025099,2]
[422478425,1778986238000,-2500000.0,0.000251,2]
[422478429,1778986238000,-500.0,0.00025151,2]
[422478427,1778986238000,-832.43,0.000251,7]
[422478435,1778986238000,-21674.82771375,0.00025311,2]
[422478437,1778986238000,-10997.65952918,0.0002532,2]
[422478433,1778986238000,-10997.65952918,0.0002516,2]
[422478431,1778986238000,-21674.82771375,0.00025155,2]
[422478438,1778986238000,-21674.82771375,0.00025466,2]
[422478440,1778986238000,-10997.65952918,0.00025479,2]
[422478442,1778986238000,-21674.82771375,0.00025622,2]
[422478368,1778986238000,-204.0,0.00025,2]
[422478409,1778986238000,-377.19117758,0.00025099,2]
[422478407,1778986238000,-627.79973666,0.00025099,2]
[422478405,1778986238000,-500.0,0.00025099,2]
[422478416,1778986238000,-500.0,0.00025099,2]
[422478374,1778986238000,-5000.0,0.00025,2]
[422478372,1778986238000,-197.0,0.00025,2]
[422478376,1778986238000,-10997.65952919,0.00025,2]
[422478378,1778986238000,-665.32569786,0.00025,2]
[422478402,1778986238000,-581.94842131,0.00025099,2]
[422478388,1778986238000,-178.03668944,0.00025,2]
[422478380,1778986238000,-2500.0,0.00025,2]
[422478387,1778986238000,-21674.82771383,0.00025,2]
[422478385,1778986238000,-6706.2366288,0.00025,2]
[422478383,1778986238000,-372.8619976,0.00025,2]
[422478393,1778986238000,-500.0,0.00025099,2]
[422478397,1778986238000,-500.0,0.00025099,2]
[422478395,1778986238000,-500.0,0.00025099,2]
[422478398,1778986238000,-500.0,0.00025099,2]
[422478412,1778986238000,-500.0,0.00025099,2]
[422478400,1778986238000,-243.81561975,0.00025099,2]
[422478414,1778986238000,-500.0,0.00025099,2]
[422478391,1778986238000,-1001.59004875,0.00025099,2]
[422478467,1778986239000,-10997.65952918,0.00026278,2]
[422478465,1778986239000,-2000.0,0.0002627,2]
[422478463,1778986239000,-21674.82771375,0.00026244,2]
[422478452,1778986239000,-10997.65952918,0.00025799,2]
[422478446,1778986239000,-303.0,0.00025695,2]
[422478450,1778986239000,-21674.82771375,0.00025777,2]
[422478444,1778986239000,-10997.65952918,0.00025639,2]
[422478459,1778986239000,-10997.65952918,0.00026118,2]
[422478448,1778986239000,-500.0,0.00025699,2]
[422478454,1778986239000,-21674.82771375,0.00025933,2]
[422478470,1778986239000,-398.91020292,0.00026304,10]
[422478461,1778986239000,-345.96891104,0.00026205,2]
[422478475,1778986239000,-3966.0467636,0.00026305,2]
[422478473,1778986239000,-1366.8592258,0.00026305,2]
[422478476,1778986239000,-690303.47051979,0.00026305,2]
[422478474,1778986239000,-334.7294148,0.00026305,2]
[422478472,1778986239000,-227.06475228,0.00026305,2]
[422478457,1778986239000,-21674.82771375,0.00026088,2]
[422478471,1778986239000,-6201.3076117,0.00026305,2]
[422478468,1778986239000,-160.0,0.00026293,2]
[422478469,1778986239000,-215.0785988,0.00026294,2]
[422478456,1778986239000,-10997.65952918,0.00025959,2]
[422478501,1778986240000,-151.0,0.00026438,2]
[422478504,1778986240000,-151.0,0.00026438,2]
[422478506,1778986240000,-151.0,0.00026438,2]
[422478505,1778986240000,-151.0,0.00026438,2]
[422478509,1778986240000,-151.0,0.00026438,2]
[422478508,1778986240000,-151.0,0.00026438,2]
[422478511,1778986240000,-10997.65952918,0.00026438,2]
[422478503,1778986240000,-152.077135,0.00026438,2]
[422478512,1778986240000,-151.0,0.00026438,2]
[422478513,1778986240000,-151.0,0.00026438,2]
[422478514,1778986240000,-809.591801,0.00026438,2]
[422478510,1778986240000,-151.0,0.00026438,2]
[422478515,1778986240000,-151.0,0.00026438,2]
[422478507,1778986240000,-151.0,0.00026438,2]
[422478502,1778986240000,-151.0,0.00026438,2]
[422478500,1778986240000,-151.0,0.00026438,2]
[422478516,1778986240000,-809.591801,0.00026438,2]
[422478499,1778986240000,-151.0,0.00026438,2]
[422478496,1778986240000,-350.0,0.00026339,2]
[422478497,1778986240000,-21674.82771375,0.00026399,2]
[422478495,1778986240000,-3198.8979105,0.00026319,2]
[422478493,1778986240000,-4993.829915,0.00026319,2]
[422478492,1778986240000,-151.0,0.00026305,2]
[422478491,1778986240000,-151.0,0.00026305,2]
[422478490,1778986240000,-151.0,0.00026305,2]
[422478488,1778986240000,-361.192932,0.00026305,2]
[422478487,1778986240000,-361.192932,0.00026305,2]
[422478486,1778986240000,-361.192932,0.00026305,2]
[422478484,1778986240000,-170138.66715311,0.00026305,2]